bitfinex-derivatives/quotes_ETHF0:USTF0_20241231
["timestamp","ask_amount","ask_price","bid_price","bid_amount"]
[1735638132711,1.19716,3393.5,3393.4,0.29514]
[1735638133416,0.902,3393.5,3393.4,0.29514]
[1735638134310,1.19714,3393.5,3393.4,0.29514]
[1735638135913,0.902,3393.5,3393.4,0.29514]
[1735638136119,1.19714,3393.5,3393.4,0.29514]
[1735638136512,0.902,3393.5,3393.4,0.29514]
[1735638136916,1.19714,3393.5,3393.4,0.29514]
[1735638142315,0.902,3393.5,3393.4,0.29514]
[1735638142910,0.29513,3393.7,3393.6,0.29513]
[1735638146022,0.29515,3393.5,3393.4,0.29513]
[1735638148124,0.29514,3393.6,3393.5,0.29512]
[1735638148919,0.8703,3393.8,3393.3,0.73789]
[1735638149121,0.29512,3393.7,3393.6,0.29512]
[1735638151922,0.29515,3393.5,3393.4,0.29514]
[1735638153623,1.60811,3393.8,3393.6,0.29512]
[1735638153624,0.29513,3393.7,3393.6,0.29512]
[1735638154125,0.8703,3393.8,3393.3,3.12016393]
[1735638154331,0.8703,3393.8,3393.7,0.29512]
[1735638154332,1.16542,3393.8,3393.7,0.29512]
[1735638154730,0.8703,3393.8,3393.7,0.29512]
[1735638156626,1.16541,3393.8,3393.7,0.29512]
[1735638157931,0.8703,3393.8,3393.7,0.29512]
[1735638158937,0.4318,3393.9,3393.6,2.38227393]
[1735638159231,3.2078,3394.0,3393.9,0.2951]
[1735638159630,3.2078,3394.0,3393.9,2.67737393]
[1735638160027,6.93717422,3394.3,3394.2,0.29508]
[1735638160227,6.93717422,3394.3,3394.2,2.67735393]
[1735638160528,6.93717422,3394.4,3394.2,2.38227393]
[1735638160830,6.93717422,3394.4,3394.3,0.29507]
[1735638161533,12.18696992,3394.6,3394.2,43.18227393]
[1735638161534,11.03077422,3394.6,3394.5,0.29505]
[1735638166431,4.38867,3394.6,3394.4,0.29507]
[1735638167028,4.38867,3394.6,3394.0,1.19133]
[1735638167231,4.38867,3394.6,3394.5,0.29507]
[1735638169041,4.0936,3394.6,3394.5,0.29507]
[1735638173340,10.61718926,3394.6,3394.5,0.29507]
[1735638174236,3.6658,3394.6,3394.5,0.29507]
[1735638175238,0.458,3394.6,3394.5,0.29507]
[1735638175641,0.888,3394.8,3394.7,0.29505]
[1735638175943,1.3304,3394.8,3394.7,0.29505]
[1735638176841,1.62544,3394.8,3394.7,0.29505]
[1735638177139,1.3304,3394.8,3394.7,0.29505]
[1735638178547,1.62544,3394.8,3394.7,0.29505]
[1735638180440,1.3304,3394.8,3394.3,0.7377]
[1735638180642,3.50287,3394.6,3394.5,0.29505]
[1735638182341,3.2078,3394.6,3394.5,0.29505]
[1735638183842,3.50286,3394.6,3394.5,0.29505]
[1735638184042,3.50286,3394.6,3394.3,0.29507]
[1735638184043,0.29509,3394.4,3394.3,0.29507]
[1735638184952,3.2078,3394.6,3394.1,0.73776]
[1735638185150,0.4413,3394.3,3394.2,0.29509]
[1735638190252,0.4413,3394.3,3394.2,1.33869519]
[1735638194854,0.4413,3394.3,3394.2,0.29509]
[1735638195063,0.73638,3394.3,3394.2,0.29509]
[1735638195461,0.4413,3394.3,3394.2,0.29509]
[1735638196360,10.15918926,3394.6,3394.5,0.29507]
[1735638196659,3.2078,3394.6,3394.5,1.33867519]
[1735638198862,3.50286,3394.6,3394.5,1.33867519]
[1735638199556,3.2078,3394.6,3394.5,0.29507]
[1735638199754,3.50286,3394.6,3394.5,0.29507]
[1735638199956,3.2078,3394.6,3394.5,0.29507]
[1735638200157,3.50286,3394.6,3394.5,0.29507]
[1735638202358,3.50286,3394.6,3394.3,1.04360519]
[1735638202359,3.2078,3394.6,3394.3,1.04360519]
[1735638202560,0.29507,3394.5,3394.4,0.29507]
[1735638203267,0.29509,3394.3,3394.2,0.29507]
[1735638203475,0.29508,3394.5,3394.4,0.29507]
[1735638204568,0.29506,3394.4,3394.3,0.29506]
[1735638205466,0.29505,3394.5,3394.4,0.29505]
[1735638205965,0.29506,3394.4,3394.3,0.29506]
[1735638206572,3.2078,3394.6,3394.3,0.73767]
[1735638206870,3.2078,3394.6,3394.5,0.29505]
[1735638207068,3.2078,3394.6,3394.5,41.09505]
[1735638207270,3.2078,3394.6,3394.5,0.29505]
[1735638207873,3.50284,3394.6,3394.5,0.29505]
[1735638211971,0.29508,3394.4,3394.3,0.29507]
[1735638214383,8.12560353,3394.5,3394.1,1.78131519]
[1735638214581,8.42067353,3394.5,3394.4,0.29508]
[1735638214976,8.84237353,3394.5,3394.4,0.29508]
[1735638215782,0.71677,3394.5,3394.4,0.29508]
[1735638218486,1.17377,3394.5,3394.4,0.29508]
[1735638219584,8.13818231,3394.5,3394.4,0.29508]
[1735638221580,7.84311231,3394.5,3394.4,0.29508]
[1735638221786,8.13818231,3394.5,3394.4,0.29508]
[1735638224291,0.2951,3394.3,3394.2,0.29508]
[1735638225886,0.29508,3394.4,3394.3,0.29507]
[1735638226385,7.25949231,3394.4,3394.3,0.29507]
[1735638226590,6.96441231,3394.4,3394.3,0.29507]
[1735638227591,6.96441231,3394.4,3394.3,1.33867519]
[1735638228098,6.96441231,3394.4,3394.3,42.13867519]
[1735638228490,10.17221231,3394.6,3394.3,41.84360519]
[1735638228795,10.17221231,3394.6,3394.5,1.33867519]
[1735638230083,10.17221231,3394.6,3394.5,0.29507]
[1735638230287,3.2078,3394.6,3394.5,0.29507]
[1735638231996,3.50286,3394.6,3394.5,0.29507]
[1735638233287,3.2078,3394.6,3394.5,0.29507]
[1735638234798,7.39481231,3394.7,3394.3,1.04360519]
[1735638234994,3.2078,3394.6,3394.3,1.78130519]
[1735638235191,3.2078,3394.6,3394.5,0.29507]
[1735638235593,3.2078,3394.6,3394.5,1.33867519]
[1735638239998,0.4304,3394.7,3394.5,1.04360519]
[1735638240200,0.4304,3394.7,3394.6,0.29506]
[1735638240496,0.72545,3394.7,3394.6,0.29506]
[1735638240999,0.8738,3394.8,3394.7,0.29505]
[1735638242503,0.8738,3394.8,3394.7,1.33865519]
[1735638244706,0.4376,3394.8,3394.7,1.33865519]
[1735638245004,3.2078,3395.0,3394.9,0.29503]
[1735638245199,3.2078,3395.0,3394.9,1.33863519]
[1735638245801,10.17221231,3395.0,3394.9,1.33863519]
[1735638246601,6.96441231,3395.0,3394.9,1.33863519]
[1735638248206,6.96441231,3395.1,3395.0,0.29502]
[1735638248406,6.96441231,3395.1,3395.0,1.33862519]
[1735638250711,7.25942231,3395.1,3395.0,1.33862519]
[1735638253210,0.29501,3395.1,3395.0,1.33862519]
[1735638254007,1.2716,3395.2,3395.0,1.04360519]
[1735638254208,1.56661,3395.2,3395.1,0.29501]
[1735638256208,1.2716,3395.2,3394.8,1.04360519]
[1735638256410,1.2716,3395.2,3394.7,0.29504]
[1735638256411,0.29505,3394.8,3394.7,0.29504]
[1735638256915,0.29503,3394.9,3394.8,0.29503]
[1735638257114,0.29503,3394.9,3394.8,1.33863519]
[1735638257909,3.2078,3395.0,3394.9,0.29503]
[1735638259011,3.2078,3395.0,3394.9,41.09503]
[1735638260613,3.2078,3395.0,3394.9,0.29503]
[1735638261913,0.29504,3394.9,3394.8,0.29503]
[1735638262116,0.29504,3394.9,3394.8,1.33863519]
[1735638264914,0.29504,3394.9,3394.8,0.29503]
[1735638265115,3.2078,3395.0,3394.6,1.04360519]
[1735638265315,0.29506,3394.7,3394.6,1.33865519]
[1735638265711,1.16406,3394.7,3394.6,1.33865519]
[1735638270119,1.16406,3394.7,3394.6,1.04360519]
[1735638270323,1.16406,3394.7,3394.6,1.33866519]
[1735638270623,1.16406,3394.7,3394.6,1.04360519]
[1735638270850,1.91260519,3394.7,3394.2,40.8]
[1735638271046,3.50288,3394.4,3394.3,0.29508]
[1735638271430,3.93208,3394.4,3394.3,0.29508]
[1735638271926,0.29509,3394.3,3394.2,0.29508]
[1735638272818,3.637,3394.4,3394.3,0.29508]
[1735638273022,3.637,3394.4,3394.3,1.33868519]
[1735638273224,3.93207,3394.4,3394.3,1.33868519]
[1735638273427,3.637,3394.4,3394.3,1.33868519]
[1735638274525,3.2078,3394.4,3394.3,1.33868519]
[1735638275420,0.72026,3394.6,3394.5,0.29507]
[1735638275619,0.72026,3394.6,3394.5,1.33867519]
[1735638276222,0.72026,3394.6,3394.5,0.29507]
[1735638276526,0.72026,3394.6,3394.5,1.33867519]
[1735638278726,0.72026,3394.6,3394.5,0.29507]
[1735638278928,0.29509,3394.3,3394.2,0.29508]
[1735638281933,3.50288,3394.4,3394.3,0.29508]
[1735638288538,3.50287,3394.4,3394.3,0.29508]
[1735638290439,3.2078,3394.4,3394.3,0.29508]
[1735638290849,3.2078,3394.4,3394.3,0.73728]
[1735638292636,3.50287,3394.4,3394.3,0.73728]
[1735638293439,3.2078,3394.4,3394.2,1.04360519]
[1735638293642,0.29509,3394.2,3394.1,0.2951]
[1735638294146,3.2078,3394.4,3394.0,1.33870519]
[1735638294147,0.2951,3394.1,3394.0,1.33870519]
[1735638294443,1.1834,3394.1,3394.0,1.33870519]
[1735638295740,1.1834,3394.1,3394.0,0.2951]
[1735638295934,0.29514,3393.8,3393.7,1.33873519]
[1735638299636,0.29516,3393.6,3393.5,0.29514]
[1735638300243,0.29515,3393.5,3393.4,1.04360519]
[1735638300444,0.29517,3393.3,3393.2,1.33876519]
[1735638300942,0.29517,3393.4,3393.3,0.29516]
[1735638301143,3.2078,3393.5,3393.4,0.29516]
[1735638301449,3.2078,3394.1,3394.0,0.29511]
[1735638301641,8.12560353,3394.5,3394.2,0.29509]
[1735638301838,8.12560353,3394.5,3394.2,42.13869519]
[1735638302151,6.95358164,3395.0,3394.2,51.08440519]
[1735638302441,6.95358164,3395.0,3394.9,0.29503]
[1735638302844,6.95358164,3395.0,3394.6,2.37340666]
[1735638303045,0.4583,3394.9,3394.3,2.37340666]
[1735638303347,0.29505,3394.7,3394.6,0.29504]
[1735638304046,0.29507,3394.6,3394.5,0.29506]
[1735638304740,0.4583,3394.9,3394.5,0.29506]
[1735638304741,0.4583,3394.9,3394.8,0.29504]
[1735638305247,3.661,3395.2,3394.8,0.29504]
[1735638305449,3.661,3395.2,3395.1,0.29501]
[1735638306050,3.95601,3395.2,3395.1,0.29501]
[1735638306252,3.661,3395.2,3395.1,0.29501]
[1735638308455,3.2078,3395.2,3395.1,0.29501]
[1735638310047,0.74378,3395.5,3394.9,2.37340666]
[1735638310048,0.4488,3395.5,3394.9,2.37340666]
[1735638310257,0.29499,3395.4,3395.3,0.29499]
[1735638311956,0.29501,3395.3,3395.2,0.295]
[1735638313258,0.4488,3395.5,3394.6,5.99750666]
[1735638313458,0.29503,3395.0,3394.9,0.29502]
[1735638314553,0.4607,3395.1,3394.6,2.78970666]
[1735638314750,3.2078,3394.8,3394.3,2.37340666]
[1735638315048,0.29509,3394.3,3394.2,0.29509]
[1735638317955,0.29507,3394.6,3394.5,0.29506]
[1735638319353,0.436,3394.7,3394.3,2.37340666]
[1735638319564,0.4416,3394.9,3394.8,0.29504]
[1735638320257,0.436,3395.0,3394.9,0.29503]
[1735638320462,0.73102,3395.0,3394.9,0.29503]
[1735638320864,0.436,3395.0,3394.9,0.29503]
[1735638321361,3.2078,3395.2,3395.1,0.29501]
[1735638322260,3.5028,3395.2,3395.1,0.29501]
[1735638323661,3.2078,3395.2,3395.1,0.29501]
[1735638324062,3.5028,3395.2,3395.1,0.29501]
[1735638327262,3.2078,3395.2,3395.1,0.29501]
[1735638327765,0.4574,3395.4,3395.3,0.295]
[1735638328460,0.4574,3395.4,3395.3,41.095]
[1735638329869,0.4574,3395.4,3395.3,0.295]
[1735638331460,3.6323,3395.7,3395.6,0.29497]
[1735638331853,3.2078,3395.7,3395.6,0.29497]
[1735638332956,3.50276,3395.7,3395.6,0.29497]
[1735638333161,3.629,3395.7,3395.6,0.29497]
[1735638333667,3.92396,3395.7,3395.6,0.29497]
[1735638333857,3.629,3395.7,3395.6,0.29497]
[1735638334062,3.2078,3395.7,3395.6,0.29497]
[1735638335470,3.50276,3395.7,3395.6,0.29497]
[1735638335769,3.2078,3395.7,3395.6,0.29497]
[1735638340573,0.4278,3395.8,3395.7,0.29496]
[1735638341580,3.91852,3396.2,3396.1,0.29493]
[1735638342876,4.0509,3396.2,3396.1,0.29493]
[1735638344272,0.8431,3396.2,3396.1,0.29493]
[1735638345178,1.13802,3396.2,3396.1,0.29493]
[1735638345881,1.13802,3396.2,3396.1,41.09493]
[1735638346678,1.13802,3396.2,3396.1,0.29493]
[1735638347780,4.34582,3396.2,3396.1,0.29493]
[1735638348282,0.29494,3396.0,3395.9,0.29493]
[1735638350887,0.29494,3395.9,3395.8,40.8]
[1735638351182,0.29495,3395.8,3395.7,0.29495]
[1735638351383,0.72375,3395.8,3395.7,0.29495]
[1735638351583,0.72375,3395.8,3395.7,41.09495]
[1735638352483,0.72375,3395.8,3395.7,40.8]
[1735638352985,0.29497,3395.7,3395.6,0.29496]
[1735638353187,1.18347,3395.7,3395.6,0.29496]
[1735638354192,1.18347,3395.7,3395.6,41.09496]
[1735638356288,0.8885,3395.7,3395.6,41.09496]
[1735638356592,1.18346,3395.7,3395.6,41.09496]
[1735638356996,0.8885,3395.7,3395.6,41.09496]
[1735638357199,0.29493,3396.1,3396.0,0.29493]
[1735638357493,0.75133,3396.1,3396.0,2.66833666]
[1735638357698,0.4564,3396.1,3396.0,2.66833666]
[1735638358893,0.75133,3396.1,3396.0,2.66833666]
[1735638359490,0.4564,3396.1,3396.0,2.66833666]
[1735638359794,0.75133,3396.1,3396.0,2.66833666]
[1735638361192,0.29495,3395.9,3395.8,0.29494]
[1735638362094,0.29495,3395.8,3395.7,0.29496]
[1735638362295,3.50275,3395.8,3395.7,0.29496]
[1735638363797,3.2078,3395.8,3395.7,0.29496]
[1735638364001,3.50275,3395.8,3395.7,0.29496]
[1735638365206,0.29496,3395.7,3395.6,41.09497]
[1735638365500,1.15026,3395.7,3395.6,41.09497]
[1735638368303,1.15026,3395.7,3395.6,40.8]
[1735638368498,1.15026,3395.7,3395.6,41.09497]
[1735638369905,1.15026,3395.7,3395.6,40.8]
[1735638370103,1.15026,3395.7,3395.6,41.09497]
[1735638371205,1.15026,3395.7,3395.6,40.8]
[1735638371606,1.15026,3395.7,3395.6,41.09497]
[1735638373103,1.15026,3395.7,3395.6,0.29497]
[1735638373704,1.15026,3395.7,3395.4,2.37340666]
[1735638373705,0.295,3395.4,3395.3,0.29499]
[1735638373909,0.29502,3395.0,3394.9,4.60149757]
[1735638374101,3.50282,3395.0,3394.9,4.60149757]
[1735638374910,0.29505,3394.7,3394.6,40.8]
[1735638375105,0.29505,3394.7,3394.6,0.29506]
[1735638376303,0.29504,3394.9,3394.8,0.29503]
[1735638376599,3.50283,3395.0,3394.9,0.29503]
[1735638377905,3.2078,3395.0,3394.9,0.29503]
[1735638382003,1.61888,3395.5,3395.4,0.29499]
[1735638382704,1.3239,3395.5,3395.4,0.29499]
[1735638383010,1.61888,3395.5,3395.4,0.29499]
[1735638386413,1.3239,3395.5,3395.2,2.37340666]
[1735638386708,0.29502,3395.1,3395.0,0.29501]
[1735638387910,0.29505,3394.8,3394.7,0.29504]
[1735638389407,3.2078,3394.8,3394.4,40.8]
[1735638389611,0.29506,3394.7,3394.6,0.29505]
[1735638389804,3.2078,3394.8,3394.4,40.8]
[1735638389805,0.29507,3394.6,3394.5,0.29506]
[1735638390004,0.29507,3394.6,3394.4,40.8]
[1735638390005,3.2078,3394.8,3394.4,40.8]
[1735638390204,0.71447,3394.5,3394.4,41.09507]
[1735638392106,0.4194,3394.5,3394.4,41.09507]
[1735638392312,0.71447,3394.5,3394.4,41.09507]
[1735638392712,0.71447,3394.5,3394.4,40.8]
[1735638392915,0.4194,3394.5,3394.2,0.29509]
[1735638393110,0.29508,3394.3,3394.2,0.29509]
[1735638394910,4.1042,3394.4,3394.0,41.0951]
[1735638395213,4.1042,3394.4,3393.9,0.29511]
[1735638395214,0.29512,3394.0,3393.9,0.29511]
[1735638396014,0.29512,3393.9,3393.8,41.09512]
[1735638396209,0.72622,3393.9,3393.8,40.8]
[1735638396410,0.29514,3393.7,3393.6,0.29514]
[1735638396909,0.8809,3393.8,3393.4,2.37340666]
[1735638397114,0.29515,3393.6,3393.5,0.29514]
[1735638399507,0.29516,3393.3,3393.2,41.09516]
[1735638399713,3.2078,3393.6,3393.2,40.8]
[1735638399908,0.29515,3393.5,3393.4,0.29514]
[1735638400612,0.29515,3393.4,3393.3,0.29515]
[1735638400818,0.4485,3393.4,3393.3,0.29515]
[1735638401018,0.74366,3393.4,3393.3,0.29515]
[1735638401318,0.74366,3393.4,3393.3,0.29516]
[1735638403214,0.4485,3393.4,3393.3,0.29516]
[1735638403917,3.2078,3393.6,3393.2,40.8]
[1735638404116,3.2078,3393.6,3393.5,2.66855666]
[1735638404421,3.2078,3394.1,3393.6,0.73785]
[1735638404618,3.5029,3394.1,3394.0,0.2951]
[1735638406215,3.2078,3394.1,3393.5,2.37340666]
[1735638406422,3.2078,3394.1,3390.8,37.10718062]
[1735638406423,3.2078,3393.7,3393.2,2.37340666]
[1735638406722,0.29517,3393.4,3393.3,0.29516]
[1735638407815,0.29517,3393.4,3393.2,2.37340666]
[1735638408017,0.29517,3393.3,3393.2,0.29517]
[1735638408315,2.06547,3393.6,3392.9,2.83170666]
[1735638408518,0.29518,3393.2,3393.1,0.29517]
[1735638409220,2.06547,3393.6,3392.9,2.83170666]
[1735638409221,0.29519,3393.0,3392.9,2.37340666]
[1735638409420,0.29521,3392.9,3392.8,0.2952]
[1735638411523,0.29522,3392.8,3392.7,0.29521]
[1735638411720,0.8991,3393.0,3392.3,2.83380666]
[1735638411923,0.29524,3392.6,3392.3,2.83380666]
[1735638412125,1.16404,3392.5,3392.4,0.29524]
[1735638414220,0.8688,3392.5,3392.4,0.29524]
[1735638420231,1.2858,3392.5,3392.4,0.29524]
[1735638421535,0.87,3392.5,3392.4,0.29524]
[1735638422821,1.16523,3392.5,3392.4,0.29524]
[1735638423026,0.87,3392.5,3392.4,0.29524]
[1735638423935,1.16523,3392.5,3392.4,0.29524]
[1735638424333,0.87,3392.5,3392.4,0.29524]
[1735638426234,0.417,3392.5,3392.4,0.29524]
[1735638426432,0.8566,3392.5,3392.4,0.29524]
[1735638427928,1.15183,3392.5,3392.4,0.29524]
[1735638428435,0.8566,3392.5,3392.4,0.29524]
[1735638429125,1.15183,3392.5,3392.4,0.29524]
[1735638429323,0.8566,3392.5,3392.4,0.29524]
[1735638430136,0.417,3392.5,3392.4,0.29524]
[1735638430528,0.417,3392.5,3392.4,0.73024]
[1735638432425,0.73796,3393.2,3392.4,0.73024]
[1735638432426,3.2078,3393.4,3393.3,0.29517]
[1735638432630,0.8932,3394.1,3393.4,0.73789]
[1735638432927,0.29512,3393.9,3393.8,0.29512]
[1735638433128,0.8932,3394.1,3393.4,0.4586]
[1735638433329,0.8932,3394.1,3394.0,0.29511]
[1735638433528,1.1883,3394.1,3394.0,0.29511]
[1735638434440,0.4508,3394.1,3394.0,0.29511]
[1735638434634,3.2078,3394.2,3394.1,0.2951]
[1735638435539,4.0724,3394.6,3393.9,2.37340666]
[1735638435735,0.29507,3394.5,3394.4,0.29506]
[1735638437238,4.0724,3394.6,3394.0,0.73777]
[1735638437537,4.36746,3394.6,3394.5,0.29506]
[1735638437933,4.0724,3394.6,3394.5,0.29506]
[1735638439040,0.29506,3394.5,3394.4,0.29506]
[1735638439842,4.0724,3394.6,3394.2,2.37340666]
[1735638440141,3.2078,3394.6,3394.5,2.66846666]
[1735638440640,0.8733,3395.2,3395.1,0.295]
[1735638441237,1.16829,3395.2,3395.1,0.295]
[1735638442033,0.8733,3395.2,3394.6,0.4471]
[1735638442247,0.29501,3395.1,3395.0,0.29501]
[1735638442741,0.8733,3395.2,3395.1,0.295]
[1735638443933,1.16829,3395.2,3395.1,0.295]
[1735638447851,0.29503,3394.9,3394.8,0.29502]
[1735638449747,3.2078,3394.9,3394.2,2.37340666]
[1735638449947,0.29506,3394.5,3394.4,0.29506]
[1735638450251,0.29505,3394.7,3394.6,0.29504]
[1735638450651,0.29506,3394.6,3394.5,0.29505]
[1735638451341,0.4198,3394.8,3394.2,2.37340666]
[1735638451544,0.29507,3394.4,3394.3,0.29507]
[1735638451963,0.71917,3394.4,3394.3,0.29507]
[1735638452344,0.4241,3394.4,3394.3,0.29507]
[1735638453449,0.4222,3394.5,3394.2,2.37340666]
[1735638453645,0.4222,3394.5,3394.4,0.29506]
[1735638456641,0.71726,3394.5,3394.4,0.29506]
[1735638456843,0.4222,3394.5,3394.1,3.2078]
[1735638457245,0.29512,3393.9,3393.8,0.29512]
[1735638457555,0.73772,3394.2,3393.5,3.2078]
[1735638457750,0.29515,3393.5,3393.4,2.37340666]
[1735638458054,0.29517,3393.2,3393.1,2.66857666]
[1735638458246,0.73786,3393.6,3393.1,2.37340666]
[1735638458548,0.29517,3393.3,3393.2,0.29517]
[1735638458753,0.29517,3393.3,3393.2,41.09517]
[1735638458952,0.29517,3393.3,3393.2,0.29517]
[1735638459248,1.3076,3393.8,3393.1,2.37340666]
[1735638459449,1.3076,3393.8,3393.4,2.37340666]
[1735638459758,0.29514,3393.7,3393.6,0.29513]
[1735638460347,0.29514,3393.7,3393.4,2.37340666]
[1735638460348,1.60272,3393.8,3393.7,0.29513]
[1735638462055,0.29514,3393.7,3393.6,0.29513]
[1735638463952,0.74194,3393.7,3393.6,0.29513]
[1735638464850,0.29515,3393.6,3393.5,0.29514]
[1735638465349,0.29515,3393.5,3393.4,2.66855666]
[1735638465657,0.29517,3393.3,3393.2,0.29516]
[1735638466349,0.29516,3393.4,3393.3,0.29515]
[1735638466951,0.4468,3393.7,3393.1,2.37340666]
[1735638467152,0.29514,3393.6,3393.5,0.29514]
[1735638469665,0.29515,3393.5,3393.4,2.66855666]
[1735638469858,0.29517,3393.3,3393.2,0.29516]
[1735638470563,0.29516,3393.5,3393.4,0.29515]
[1735638471156,0.29517,3393.3,3393.2,0.29516]
[1735638471860,0.4544,3393.4,3393.3,0.29516]
[1735638472259,0.74956,3393.4,3393.3,0.29516]
[1735638472654,0.29517,3393.3,3393.2,0.29517]
[1735638472854,0.29517,3393.3,3392.8,1.17961]
[1735638472855,0.2952,3393.0,3392.9,0.29519]
[1735638474271,0.29522,3392.9,3392.8,0.2952]
[1735638475060,0.29523,3392.7,3392.6,0.29522]
[1735638476364,0.29522,3392.8,3392.7,0.29521]
[1735638481560,0.29521,3393.0,3392.9,0.2952]
[1735638481764,3.2078,3393.1,3392.8,2.37340666]
[1735638481966,3.2078,3393.1,3393.0,0.2952]
[1735638482271,3.50299,3393.1,3393.0,0.2952]
[1735638482765,0.29521,3393.0,3392.9,0.2952]
[1735638486367,3.2078,3393.1,3392.8,2.37340666]
[1735638486564,3.50299,3393.1,3393.0,0.2952]
[1735638488165,0.29521,3393.0,3392.9,0.2952]
[1735638488365,3.2078,3393.1,3392.5,2.37340666]
[1735638488659,0.29523,3392.8,3392.7,0.29521]
[1735638490062,0.738,3393.0,3392.5,2.37340666]
[1735638490263,1.17053,3392.7,3392.6,0.29522]
[1735638491169,0.8753,3392.7,3392.5,2.37340666]
[1735638491377,0.72423,3392.6,3392.5,2.66863666]
[1735638494575,0.429,3392.6,3392.5,2.66863666]
[1735638494776,0.72423,3392.6,3392.5,2.66863666]
[1735638495473,0.29523,3392.8,3392.7,0.29521]
[1735638496281,0.29522,3392.7,3392.6,0.71192]
[1735638499473,0.29522,3392.7,3392.6,0.29522]
[1735638500272,0.29525,3392.5,3392.4,0.29523]
[1735638500582,1.14484,3392.6,3392.5,0.29523]
[1735638508990,3.2078,3392.7,3392.6,0.29523]
[1735638510791,0.29521,3392.9,3392.5,2.37340666]
[1735638511090,0.2952,3393.0,3392.9,0.29521]
[1735638511588,0.29521,3392.9,3392.8,2.66861666]
[1735638511789,4.82197,3393.2,3392.5,2.79860666]
[1735638511989,0.29522,3392.9,3392.8,0.29521]
[1735638512186,4.37919,3393.2,3393.1,0.29519]
[1735638513087,4.084,3393.2,3393.1,0.29519]
[1735638514188,4.37918,3393.2,3393.1,0.29519]
[1735638514778,0.2952,3393.1,3393.0,0.29519]
[1735638514982,1.17139,3393.2,3393.1,0.29519]
[1735638515188,0.4159,3393.3,3393.2,0.29518]
[1735638515388,3.2078,3393.6,3393.5,0.29515]
[1735638515791,4.0729,3394.1,3393.4,2.37340666]
[1735638515986,4.4994,3394.1,3394.0,0.29511]
[1735638516284,3.2078,3394.1,3394.0,2.66851666]
[1735638516993,1.3006,3394.5,3394.4,0.29508]
[1735638517987,1.59567,3394.5,3394.4,0.29508]
[1735638519283,1.3006,3394.5,3394.0,2.37340666]
[1735638519491,0.29509,3394.4,3394.3,0.29508]
[1735638520391,0.29511,3394.0,3393.9,3.2078]
[1735638520588,0.29514,3393.7,3393.6,0.29514]
[1735638520788,3.50294,3393.7,3393.6,0.29514]
[1735638520989,0.29516,3393.6,3393.5,0.29515]
[1735638521993,0.29517,3393.5,3393.4,0.29516]
[1735638522391,0.29518,3393.4,3393.1,2.37340666]
[1735638522586,3.2078,3393.3,3392.8,2.37340666]
[1735638522790,1.58788,3393.2,3393.1,0.29519]
[1735638523693,1.2927,3393.2,3392.5,2.37340666]
[1735638524097,0.29522,3392.8,3392.7,0.29522]
[1735638524989,0.29521,3393.0,3392.9,0.2952]
[1735638525193,0.29522,3392.9,3392.8,0.29521]
[1735638525392,1.2927,3393.2,3392.5,2.37340666]
[1735638525593,0.29523,3392.7,3392.6,0.29522]
[1735638526589,0.29525,3392.5,3392.4,0.29524]
[1735638526791,0.74964,3392.6,3392.5,0.29524]
[1735638527699,0.4544,3392.6,3392.5,0.29524]
[1735638528598,0.74963,3392.6,3392.5,0.29524]
[1735638530497,0.4544,3392.6,3392.5,0.29524]
[1735638531199,0.74963,3392.6,3392.5,0.29524]
[1735638532193,0.4544,3392.6,3392.5,0.29524]
[1735638533710,0.74963,3392.6,3392.5,0.29524]
[1735638535213,0.4544,3392.6,3392.5,0.29524]
[1735638535608,0.4544,3392.6,3392.5,2.66864666]
[1735638538108,3.2078,3392.9,3392.8,0.29521]
[1735638538308,3.50301,3392.9,3392.8,0.29521]
[1735638539814,3.2078,3392.9,3392.2,3.11156666]
[1735638540014,0.29523,3392.7,3392.6,0.29522]
[1735638542211,3.50301,3392.9,3392.8,0.29521]
[1735638542517,0.29523,3392.7,3392.6,0.29522]
[1735638543418,3.2078,3392.9,3392.1,0.424]
[1735638543617,0.2953,3392.0,3391.9,0.29528]
[1735638544319,0.29531,3391.8,3391.7,0.2953]
[1735638544523,0.4258,3391.9,3391.8,0.2953]
[1735638544914,0.72109,3391.9,3391.8,0.2953]
[1735638551527,0.2953,3391.8,3391.7,0.29529]
[1735638551823,0.2953,3391.7,3391.6,2.66870666]
[1735638552028,0.7526,3391.7,3391.6,2.66870666]
[1735638553328,0.4573,3391.7,3391.6,2.66870666]
[1735638553519,0.7526,3391.7,3391.6,2.66870666]
[1735638554123,0.4573,3391.7,3391.3,40.8]
[1735638554326,0.4525,3391.6,3390.6,4.60149757]
[1735638554517,3.2078,3391.4,3390.6,6.97490423]
[1735638554724,0.29536,3391.0,3390.9,0.29536]
[1735638555025,0.29538,3390.9,3390.8,0.29537]
[1735638555323,0.29539,3390.7,3390.6,7.27029423]
[1735638555827,0.29539,3390.7,3390.6,2.66879666]
[1735638556030,0.74419,3390.7,3390.6,2.66879666]
[1735638556222,0.4488,3390.7,3390.5,0.2954]
[1735638556423,0.29541,3390.4,3390.3,2.66882666]
[1735638556622,0.29541,3390.4,3390.0,3.2078]
[1735638556623,0.8781,3390.7,3390.2,0.29542]
[1735638556824,0.29542,3390.3,3390.2,0.29542]
[1735638557023,0.29544,3390.1,3390.0,0.29545]
[1735638557429,0.4384,3390.2,3389.7,2.37340666]
[1735638557629,0.4488,3390.0,3389.9,0.29545]
[1735638560734,0.4384,3390.2,3389.7,2.37340666]
[1735638561032,3.2078,3390.5,3390.4,0.29542]
[1735638561227,4.0722,3390.9,3390.4,2.37340666]
[1735638561432,4.0722,3390.9,3390.8,0.29538]